bitfinex/quotes_SOLUSD_20251117
["timestamp","ask_amount","ask_price","bid_price","bid_amount"]
[1763415886925,8.34591936,130.96,130.95,27.90978769]
[1763415887123,30.20015957,130.96,130.95,27.90978769]
[1763415887444,30.20015957,130.96,130.93,0.17]
[1763415887606,8.92400206,130.94,130.93,0.17]
[1763415888006,9.63400206,130.94,130.93,0.17]
[1763415888435,7.63766898,130.93,130.91,0.2]
[1763415888734,8.92400206,130.92,130.91,0.2]
[1763415888939,9.63400206,130.92,130.91,0.2]
[1763415889440,9.63400206,130.92,130.91,9.98882769]
[1763415889807,9.63400206,130.92,130.91,28.10978769]
[1763415890201,17.27225442,130.92,130.91,28.10978769]
[1763415890828,9.63400206,130.92,130.91,28.10978769]
[1763415892322,8.92400206,130.92,130.91,28.10978769]
[1763415892516,8.92400206,130.93,130.91,28.76978769]
[1763415892829,4.71623609,130.96,130.93,18.12096]
[1763415892830,8.92400206,130.95,130.93,18.12096]
[1763415893411,8.92400206,130.94,130.91,9.98882769]
[1763415893634,8.92400206,130.94,130.93,18.12096]
[1763415894133,9.63400206,130.94,130.93,18.12096]
[1763415894321,8.92400206,130.94,130.93,18.12096]
[1763415895823,4.00623609,130.96,130.94,18.12096]
[1763415896009,8.92400206,130.95,130.94,18.12096]
[1763415896437,4.00623609,130.96,130.94,18.12096]
[1763415896615,8.92400206,130.95,130.94,18.12096]
[1763415897016,9.63400206,130.95,130.94,18.12096]
[1763415897830,4.00623609,130.96,130.94,18.12096]
[1763415898119,9.63400206,130.95,130.94,18.12096]
[1763415898434,8.92400206,130.95,130.94,18.12096]
[1763415898736,9.63400206,130.95,130.94,18.12096]
[1763415899146,17.27050454,130.95,130.94,18.12096]
[1763415900241,19.27050454,130.95,130.94,18.12096]
[1763415900535,10.34650248,130.95,130.91,0.2]
[1763415900741,8.92400206,130.92,130.91,0.2]
[1763415901045,8.92400206,130.92,130.91,9.98882769]
[1763415901229,9.63400206,130.92,130.91,9.98882769]
[1763415901940,11.63400206,130.92,130.84,9.98882769]
[1763415902112,8.92400206,130.85,130.84,0.2]
[1763415902441,8.92400206,130.85,130.84,28.10978769]
[1763415904214,8.92400206,130.85,130.84,28.76978769]
[1763415905012,0.71,130.89,130.88,27.90978769]
[1763415905246,8.92400206,130.89,130.88,27.90978769]
[1763415905416,24.20485609,130.96,130.88,28.56978769]
[1763415905613,4.71623609,130.96,130.89,0.66]
[1763415906430,4.00623609,130.96,130.89,0.66]
[1763415906827,12.93023815,130.96,130.94,18.12096]
[1763415907128,8.92400206,130.95,130.94,18.12096]
[1763415907424,12.93023815,130.96,130.94,18.12096]
[1763415908044,4.00623609,130.96,130.93,18.12096]
[1763415908247,8.92400206,130.94,130.93,18.12096]
[1763415908744,12.35219533,130.96,130.93,18.78096]
[1763415908745,8.92400206,130.95,130.93,18.78096]
[1763415908922,12.93023815,130.96,130.94,18.12096]
[1763415909638,8.92400206,130.95,130.93,18.12096]
[1763415910754,8.92400206,130.95,130.93,18.78096]
[1763415911443,4.00623609,130.96,130.91,18.78096]
[1763415911644,8.92400206,130.94,130.92,18.12096]
[1763415911863,8.92400206,130.94,130.92,18.79096]
[1763415912251,8.92400206,130.94,130.89,8.92400206]
[1763415912252,8.92400206,130.93,130.91,18.12096]
[1763415912553,16.56225442,130.92,130.91,18.12096]
[1763415913031,17.28225442,130.92,130.91,18.12096]
[1763415914330,19.28225442,130.92,130.91,18.12096]
[1763415914733,2.0,130.91,130.85,9.78882769]
[1763415914951,14.03262494,130.86,130.85,9.78882769]
[1763415915132,14.03262494,130.86,130.84,0.2]
[1763415915332,14.03262494,130.86,130.85,9.78882769]
[1763415916356,0.72,130.89,130.84,0.2]
[1763415916855,14.03262494,130.88,130.85,27.90978769]
[1763415917061,14.03262494,130.88,130.86,0.67]
[1763415917267,14.03262494,130.87,130.86,9.78882769]
[1763415918060,14.03262494,130.88,130.86,10.50882769]
[1763415918359,0.72,130.93,130.89,18.12096]
[1763415918658,14.03262494,130.91,130.89,18.12096]
[1763415918861,14.03262494,130.91,130.89,18.84096]
[1763415919236,14.03262494,130.91,130.89,18.12096]
[1763415919557,14.03262494,130.9,130.89,18.12096]
[1763415920063,14.03262494,130.91,130.89,18.12096]
[1763415921230,0.72,130.93,130.89,18.84096]
[1763415921437,14.03262494,130.91,130.89,18.84096]
[1763415921766,14.03262494,130.91,130.89,18.12096]
[1763415921940,0.72,130.93,130.89,18.12096]
[1763415922140,14.03262494,130.91,130.89,18.12096]
[1763415922370,14.03262494,130.9,130.89,18.12096]
[1763415922577,0.72,130.92,130.89,18.12096]
[1763415922866,20.329064,130.95,130.89,18.84096]
[1763415922867,14.03262494,130.9,130.89,18.84096]
[1763415923040,0.72,130.94,130.89,18.12096]
[1763415923240,14.03262494,130.9,130.89,18.12096]
[1763415923458,6.29643906,130.95,130.9,18.84096]
[1763415923656,14.03262494,130.94,130.91,0.72]
[1763415923861,4.00623609,130.96,130.92,18.12096]
[1763415924043,14.03262494,130.93,130.92,18.84096]
[1763415924369,4.00623609,130.96,130.93,0.72]
[1763415924760,14.03262494,130.94,130.92,18.12096]
[1763415925065,14.03262494,130.93,130.92,17.99096]
[1763415925377,23.07112074,130.93,130.89,18.12096]
[1763415925590,14.03262494,130.9,130.89,18.12096]
[1763415925864,14.03262494,130.9,130.89,18.84096]
[1763415926069,14.03262494,130.9,130.89,18.12096]
[1763415926257,14.03262494,130.9,130.89,18.84096]
[1763415926642,14.03262494,130.9,130.89,18.12096]
[1763415927054,14.03262494,130.9,130.89,0.72]
[1763415928174,14.03262494,130.9,130.87,18.12096]
[1763415928475,14.03262494,130.88,130.87,18.12096]
[1763415928874,14.03262494,130.88,130.87,18.84096]
[1763415929069,7.63829199,130.92,130.87,18.84096]
[1763415929266,14.03262494,130.88,130.87,18.84096]
[1763415930050,32.15358494,130.95,130.87,18.84096]
[1763415930051,14.03262494,130.89,130.87,18.84096]
[1763415930264,0.63,130.94,130.88,18.84096]
[1763415930265,14.03262494,130.91,130.88,18.84096]
[1763415930583,14.03262494,130.91,130.89,0.72]
[1763415931088,14.66262494,130.9,130.87,18.12096]
[1763415931265,14.03262494,130.88,130.87,18.12096]
[1763415931442,14.03262494,130.88,130.84,0.2]
[1763415931443,28.06524988,130.88,130.84,0.2]
[1763415931785,14.03262494,130.85,130.81,0.2]
[1763415931947,14.03262494,130.82,130.79,0.72]
[1763415932151,14.03262494,130.8,130.79,0.72]
[1763415932883,14.03262494,130.8,130.78,5.98318552]
[1763415933184,14.03262494,130.79,130.78,5.98318552]
[1763415933381,14.03262494,130.81,130.78,5.98318552]
[1763415933579,14.03262494,130.81,130.8,18.12096]
[1763415933787,4.00494849,130.85,130.8,18.12096]
[1763415933788,4.00494849,130.85,130.81,18.12096]
[1763415933954,7.63889405,130.91,130.86,18.12096]
[1763415934155,14.03262494,130.87,130.86,18.12096]
[1763415934783,18.66805176,130.87,130.86,18.12096]
[1763415935159,18.03805176,130.87,130.86,18.12096]
[1763415935564,18.66805176,130.87,130.86,18.12096]
[1763415936284,9.78882769,130.93,130.87,18.12096]
[1763415936582,14.03262494,130.88,130.86,18.12096]
[1763415936778,14.03262494,130.87,130.86,18.12096]
[1763415936967,14.03262494,130.88,130.86,18.84096]
[1763415937287,14.03262494,130.9,130.87,0.72]
[1763415937584,14.03262494,130.9,130.87,18.84096]
[1763415937956,14.03262494,130.89,130.88,0.72]
[1763415938277,14.03262494,130.9,130.88,0.72]
[1763415938657,14.03262494,130.89,130.88,0.72]
[1763415939087,14.03262494,130.9,130.88,0.72]
[1763415940071,14.03262494,130.89,130.88,0.72]
[1763415940267,14.03262494,130.9,130.88,0.72]
[1763415941574,14.03262494,130.89,130.86,18.12096]
[1763415941776,17.42659296,130.93,130.86,18.82096]
[1763415941777,14.03262494,130.87,130.86,18.82096]
[1763415941971,14.03262494,130.88,130.86,18.82096]
[1763415942666,14.03262494,130.87,130.86,18.82096]
[1763415942869,0.66,130.91,130.86,18.82096]
[1763415942870,14.03262494,130.88,130.86,18.82096]
[1763415943691,14.03262494,130.88,130.86,0.7]
[1763415944994,0.66,130.91,130.86,0.7]
[1763415945293,14.03262494,130.88,130.86,0.7]
[1763415945673,0.66,130.87,130.85,18.12096]
[1763415945881,28.06524988,130.86,130.85,18.12096]
[1763415946185,14.03262494,130.86,130.84,18.12096]
[1763415946408,14.03262494,130.85,130.84,18.12096]
[1763415946583,23.03528237,130.89,130.85,0.7]
[1763415946764,0.66,130.9,130.85,0.7]
[1763415947390,9.78882769,130.91,130.85,0.7]
[1763415947786,18.08776837,130.91,130.85,0.7]
[1763415948001,14.03262494,130.89,130.86,18.12096]
[1763415948292,14.03262494,130.9,130.86,18.12096]
[1763415948482,14.03262494,130.9,130.87,0.7]
[1763415948867,14.03262494,130.89,130.87,0.7]
[1763415950300,14.03262494,130.88,130.87,0.7]
[1763415950488,14.03262494,130.89,130.87,0.7]
[1763415950988,0.66,130.93,130.87,0.7]
[1763415950989,14.03262494,130.88,130.87,0.7]
[1763415951973,14.03262494,130.89,130.87,0.7]
[1763415952693,14.03262494,130.9,130.87,0.7]
[1763415953584,14.03262494,130.9,130.87,18.82096]
[1763415953784,14.03262494,130.9,130.88,0.7]
[1763415954086,14.69262494,130.89,130.86,18.12096]
[1763415954290,14.03262494,130.87,130.86,18.12096]
[1763415954591,14.03262494,130.87,130.84,18.82096]
[1763415954792,14.03262494,130.86,130.84,18.82096]
[1763415954976,14.03262494,130.86,130.85,0.7]
[1763415955793,0.66,130.9,130.85,0.7]
[1763415955995,14.03262494,130.87,130.85,0.7]
[1763415956575,11.64290453,130.91,130.85,0.7]
[1763415956777,14.03262494,130.87,130.85,0.7]
[1763415957278,4.66390309,130.91,130.85,0.7]
[1763415957483,14.03262494,130.88,130.85,18.82096]
[1763415957886,14.03262494,130.88,130.86,0.7]
[1763415958703,14.03262494,130.87,130.86,0.7]
[1763415959885,14.03262494,130.88,130.86,0.7]
[1763415960482,4.66390309,130.91,130.86,0.7]
[1763415960483,14.03262494,130.87,130.86,0.7]
[1763415960675,14.03262494,130.87,130.84,18.82096]
[1763415960881,14.03262494,130.85,130.84,18.12096]
[1763415961084,14.03262494,130.85,130.84,18.82096]
[1763415961594,14.03262494,130.85,130.84,18.12096]
[1763415962297,0.66,130.88,130.84,18.82096]
[1763415962475,14.03262494,130.85,130.84,18.82096]
[1763415962674,14.03262494,130.85,130.84,18.12096]
[1763415963280,14.03262494,130.85,130.84,18.82096]
[1763415964906,0.66,130.89,130.84,18.82096]
[1763415965204,14.03262494,130.85,130.84,81.82096]
[1763415965494,14.03262494,130.86,130.84,81.82096]
[1763415965698,14.03262494,130.86,130.85,0.7]
[1763415966701,14.03262494,130.86,130.84,81.12096]
[1763415967003,14.03262494,130.86,130.84,81.82096]
[1763415967403,14.03262494,130.86,130.84,81.12096]
[1763415967604,14.03262494,130.86,130.84,81.82096]
[1763415968904,0.66,130.88,130.85,18.82096]
[1763415968905,14.03262494,130.88,130.85,18.82096]
[1763415969114,4.00390309,130.91,130.86,18.82096]
[1763415969115,14.03262494,130.89,130.86,18.82096]
[1763415969625,4.00390309,130.91,130.87,0.7]
[1763415969779,9.78882769,130.91,130.87,0.7]
[1763415969988,14.03262494,130.9,130.87,0.7]
[1763415970187,14.03262494,130.89,130.87,0.7]
[1763415971105,9.78882769,130.92,130.87,0.7]
[1763415971305,14.03262494,130.89,130.87,0.7]
[1763415971498,9.78882769,130.92,130.87,0.7]
[1763415971499,14.03262494,130.9,130.87,0.7]
[1763415972302,10.44882769,130.92,130.85,0.69]
[1763415972303,14.03262494,130.88,130.85,0.69]
[1763415972501,14.03262494,130.86,130.84,18.12096]
[1763415972703,11.78882769,130.92,130.84,18.12096]
[1763415972704,14.03262494,130.85,130.84,18.12096]
[1763415972897,14.03262494,130.86,130.84,18.81096]
[1763415973107,14.03262494,130.85,130.84,18.12096]
[1763415974022,14.70262494,130.85,130.84,18.12096]
[1763415974591,14.03262494,130.85,130.84,18.12096]
[1763415974921,8.95737303,130.85,130.84,18.81096]
[1763415975323,8.95737303,130.85,130.84,18.12096]
[1763415975802,8.95737303,130.86,130.84,18.81096]
[1763415976334,8.95737303,130.89,130.86,18.12096]
[1763415976623,11.64032513,130.94,130.86,18.12096]
[1763415976624,8.95737303,130.91,130.86,18.12096]
[1763415976828,8.95737303,130.91,130.87,0.69]
[1763415977189,4.00137665,130.9,130.87,0.69]
[1763415977399,12.95874968,130.9,130.87,0.69]
[1763415978433,4.00137665,130.9,130.88,18.12096]
[1763415978799,22.74757737,130.9,130.88,0.66]
[1763415979116,12.95874968,130.9,130.88,0.66]
[1763415980121,4.00137665,130.9,130.86,0.66]
[1763415980303,8.95737303,130.89,130.86,0.66]
[1763415980493,8.95737303,130.89,130.86,18.78096]
[1763415980830,4.00137665,130.9,130.86,18.12096]
[1763415980831,8.95737303,130.87,130.86,18.12096]
[1763415981125,8.95737303,130.87,130.82,18.78096]
[1763415981292,8.95737303,130.85,130.82,18.78096]
[1763415981492,23.09992516,130.9,130.83,0.66]
[1763415981493,13.79020434,130.9,130.83,0.66]
[1763415981821,8.95737303,130.89,130.86,18.12096]
[1763415982322,8.95737303,130.89,130.87,0.66]
[1763415982495,13.79020434,130.9,130.87,0.66]
[1763415982800,8.95737303,130.89,130.87,0.66]
[1763415983614,8.95737303,130.88,130.84,18.12096]
[1763415984106,8.95737303,130.88,130.85,0.66]
[1763415984624,8.95737303,130.88,130.85,18.78096]
[1763415985416,8.95737303,130.86,130.84,18.12096]
[1763415985593,8.95737303,130.85,130.84,18.12096]
[1763415985990,9.66737303,130.85,130.82,18.12096]
[1763415986191,8.95737303,130.83,130.82,18.12096]
[1763415986597,8.95737303,130.84,130.82,18.78096]
[1763415986796,8.95737303,130.84,130.82,18.12096]
[1763415987011,8.95737303,130.85,130.82,18.78096]
[1763415987413,8.95737303,130.84,130.82,18.78096]
[1763415988098,0.71,130.87,130.82,18.78096]
[1763415988099,9.66737303,130.83,130.82,18.12096]
[1763415988418,9.66737303,130.83,130.79,9.78882769]
[1763415988419,18.62474606,130.83,130.79,9.78882769]
[1763415988623,17.91474606,130.8,130.77,0.2]
[1763415988840,8.95737303,130.78,130.77,0.2]
[1763415989337,9.58737303,130.78,130.77,0.2]
[1763415989622,17.23380214,130.78,130.73,0.2]
[1763415989792,8.95737303,130.74,130.73,0.2]
[1763415990231,9.58737303,130.74,130.73,0.2]
[1763415990435,17.91474606,130.73,130.72,0.2]
[1763415990594,18.54474606,130.73,130.72,0.2]
[1763415991029,8.95737303,130.73,130.72,0.2]
[1763415991601,8.95737303,130.73,130.72,18.32096]
[1763415995330,17.23672665,130.73,130.72,28.10978769]
[1763415995540,26.19409968,130.73,130.7,18.12096]
[1763415995826,8.95737303,130.71,130.65,10.44882769]
[1763415996015,9.58737303,130.72,130.65,10.44882769]
[1763415996016,8.95737303,130.66,130.65,10.44882769]
[1763415996719,8.95737303,130.67,130.65,10.44882769]
[1763415997033,6.31307204,130.77,130.67,9.78882769]
[1763415997034,8.95737303,130.71,130.67,9.78882769]
[1763415997227,8.95737303,130.71,130.69,9.78882769]
[1763415997534,7.23664044,130.79,130.72,18.12096]
[1763415997535,8.95737303,130.75,130.72,18.12096]
[1763415997910,8.95737303,130.75,130.73,0.66]
[1763415998130,0.63,130.78,130.73,0.66]
[1763415998131,8.95737303,130.74,130.73,0.66]
[1763415999014,8.95737303,130.74,130.72,18.12096]
[1763415999213,17.23672665,130.73,130.72,18.12096]
[1763415999905,26.19409968,130.73,130.72,18.12096]
[1763416000714,9.58737303,130.73,130.72,18.12096]
[1763416001332,26.19409968,130.73,130.72,18.12096]
[1763416001539,6.81943582,130.78,130.72,18.78096]
[1763416001842,0.63,130.78,130.72,18.78096]
[1763416002328,8.95737303,130.76,130.72,18.78096]
[1763416002732,8.95737303,130.76,130.73,0.66]
[1763416003231,8.95737303,130.75,130.73,0.66]
[1763416003919,9.78882769,130.79,130.74,18.12096]
[1763416004216,8.95737303,130.77,130.74,18.12096]
[1763416004435,8.95737303,130.77,130.75,0.66]
[1763416005125,8.95737303,130.76,130.75,0.66]
[1763416005458,8.95737303,130.77,130.74,18.12096]
[1763416005732,8.95737303,130.76,130.74,0.66]
[1763416005936,0.63,130.81,130.74,18.78096]
[1763416006127,8.95737303,130.77,130.74,18.78096]
[1763416006525,8.95737303,130.75,130.73,18.12096]
[1763416006717,0.63,130.76,130.73,18.12096]
[1763416006718,8.95737303,130.74,130.73,18.12096]
[1763416006909,8.95737303,130.74,130.72,18.12096]
[1763416007226,0.63,130.76,130.72,18.12096]
[1763416007227,8.95737303,130.73,130.72,18.12096]
[1763416009036,8.95737303,130.73,130.72,18.78096]
[1763416009343,8.95737303,130.74,130.72,18.78096]
[1763416009936,8.95737303,130.73,130.72,18.78096]
[1763416011238,8.95737303,130.73,130.72,18.12096]
[1763416012334,17.23672665,130.73,130.72,18.12096]
[1763416012846,17.23672665,130.73,130.68,9.78882769]
[1763416012847,26.19409968,130.73,130.68,9.78882769]
[1763416013019,8.95737303,130.69,130.68,9.78882769]
[1763416015915,8.95737303,130.69,130.68,27.90978769]
[1763416017719,16.60906788,130.69,130.68,27.90978769]
[1763416017920,8.95737303,130.69,130.68,27.90978769]
[1763416020627,17.23906788,130.69,130.68,27.90978769]
[1763416020828,8.95737303,130.69,130.68,27.90978769]
[1763416022452,19.11965996,130.76,130.68,28.56978769]
[1763416022642,8.95737303,130.71,130.69,0.66]
[1763416023248,8.95737303,130.7,130.68,27.90978769]
[1763416023451,8.95737303,130.69,130.68,27.90978769]
[1763416024229,17.23906788,130.69,130.68,27.90978769]
[1763416024773,8.95737303,130.69,130.68,27.90978769]
[1763416026738,16.60906788,130.69,130.68,27.90978769]
[1763416026944,17.23906788,130.69,130.68,27.90978769]
[1763416027152,8.95737303,130.69,130.68,27.90978769]
[1763416028539,8.95737303,130.69,130.68,28.56978769]
[1763416028872,0.63,130.75,130.68,28.56978769]
[1763416029037,8.95737303,130.71,130.69,0.66]
[1763416029435,8.95737303,130.72,130.69,0.66]
[1763416029749,8.95737303,130.73,130.69,0.66]
[1763416030135,28.90400569,130.79,130.69,0.66]
[1763416030136,8.95737303,130.72,130.69,0.66]
[1763416031665,7.64821231,130.75,130.69,0.66]
[1763416031966,8.95737303,130.72,130.69,0.66]
[1763416034766,8.95737303,130.74,130.72,18.12096]
[1763416035058,8.95737303,130.74,130.72,18.78096]
[1763416036160,8.95737303,130.74,130.72,18.12096]
[1763416036343,8.95737303,130.74,130.72,18.78096]
[1763416036669,8.95737303,130.73,130.72,18.78096]
[1763416036855,14.0596282,130.73,130.72,18.78096]
[1763416038651,7.64664392,130.78,130.72,18.78096]
[1763416038854,14.0596282,130.74,130.73,0.71]
[1763416039263,8.27664392,130.78,130.73,0.71]
[1763416039470,14.0596282,130.74,130.73,0.71]
[1763416040373,48.01347024,130.81,130.76,18.12096]
[1763416040374,10.41882769,130.8,130.76,18.12096]
[1763416040673,14.0596282,130.77,130.76,18.12096]
[1763416040970,9.78882769,130.81,130.77,0.71]
[1763416041148,9.78882769,130.81,130.75,18.12096]
[1763416041149,14.0596282,130.78,130.75,18.12096]
[1763416041347,14.0596282,130.79,130.76,18.83096]
[1763416041646,14.0596282,130.79,130.77,0.71]
[1763416042757,14.0596282,130.8,130.77,0.71]
[1763416043855,14.0596282,130.79,130.77,0.71]
[1763416045042,32.3805882,130.86,130.77,0.71]
[1763416045043,18.32096,130.86,130.78,14.0596282]
[1763416045250,9.78882769,130.83,130.79,14.0596282]
[1763416045467,23.84845589,130.83,130.77,14.7696282]
[1763416045777,14.0596282,130.82,130.77,14.7696282]
[1763416045949,14.0596282,130.81,130.78,0.71]
[1763416046576,9.78882769,130.83,130.78,0.71]
[1763416046768,14.0596282,130.82,130.78,0.71]
[1763416046945,23.84845589,130.83,130.78,0.71]
[1763416047146,14.0596282,130.82,130.78,0.71]
[1763416047955,9.78882769,130.83,130.79,14.0596282]
[1763416048159,23.84845589,130.83,130.78,14.7696282]
[1763416048574,32.1805882,130.84,130.79,14.7696282]
[1763416048777,18.12096,130.84,130.8,14.0596282]
[1763416048955,18.12096,130.84,130.8,14.7696282]
[1763416049155,18.12096,130.84,130.81,0.71]
[1763416050681,32.1805882,130.84,130.81,0.71]
[1763416050986,14.0596282,130.83,130.79,0.71]
[1763416051187,14.0596282,130.81,130.8,0.71]
[1763416051751,18.12096,130.84,130.8,0.71]
[1763416052007,18.12096,130.84,130.8,14.7696282]
[1763416052351,18.12096,130.84,130.81,0.71]
[1763416052551,18.12096,130.84,130.81,63.71]
[1763416052960,18.12096,130.84,130.82,0.71]
[1763416053165,18.12096,130.84,130.82,63.71]
[1763416053686,18.12096,130.84,130.83,0.71]
[1763416054284,32.8105882,130.84,130.78,0.71]
[1763416054585,14.0596282,130.82,130.76,32.8905882]
[1763416054788,18.12096,130.84,130.79,14.0596282]
[1763416054963,14.0596282,130.83,130.77,0.71]
[1763416055170,14.0596282,130.83,130.78,14.0596282]
[1763416055671,14.0596282,130.82,130.79,0.71]
[1763416056575,14.0596282,130.8,130.76,27.90978769]
[1763416056775,14.0596282,130.77,130.76,9.78882769]
[1763416056970,14.0596282,130.77,130.73,18.12096]
[1763416056971,14.0596282,130.77,130.73,0.71]
[1763416057177,27.1594558,130.81,130.74,0.71]
[1763416057178,0.63,130.79,130.74,0.71]
[1763416057383,14.0596282,130.75,130.74,0.71]
[1763416057788,14.0596282,130.75,130.72,18.83096]
[1763416057966,14.0596282,130.73,130.72,18.12096]
[1763416058492,14.0596282,130.74,130.72,18.12096]
[1763416058689,14.0596282,130.74,130.73,0.71]
[1763416058989,14.0596282,130.74,130.73,9.78882769]
[1763416059763,4.00210957,130.77,130.73,9.78882769]
[1763416059969,4.00210957,130.77,130.74,10.49882769]
[1763416059970,14.0596282,130.76,130.74,10.49882769]
[1763416060186,14.0596282,130.75,130.74,10.49882769]
[1763416061172,14.0596282,130.76,130.74,10.49882769]
[1763416061800,14.0596282,130.75,130.74,10.49882769]
[1763416062006,14.0596282,130.75,130.73,9.78882769]
[1763416062177,0.63,130.76,130.73,9.78882769]
[1763416062178,14.0596282,130.74,130.73,9.78882769]
[1763416063004,14.0596282,130.74,130.73,0.7]
[1763416064387,22.12306957,130.77,130.73,10.48882769]
[1763416064698,22.12306957,130.77,130.75,14.0596282]
[1763416065078,22.12306957,130.77,130.76,0.7]
[1763416073998,4.00210957,130.77,130.76,0.7]
[1763416074909,22.12306957,130.77,130.76,0.7]
[1763416075882,22.12306957,130.77,130.76,63.7]
[1763416076089,4.00210957,130.77,130.76,63.7]
[1763416076305,22.12306957,130.77,130.76,63.7]
[1763416076688,18.06173777,130.77,130.76,63.0]
[1763416077997,4.00210957,130.77,130.76,63.7]
[1763416080598,18.06173777,130.77,130.76,63.0]
[1763416081299,18.06173777,130.77,130.74,63.0]
[1763416081300,18.12096,130.75,130.74,63.0]
[1763416082029,32.1805882,130.75,130.74,63.0]
[1763416082230,32.8105882,130.75,130.7,9.78882769]
[1763416082418,14.0596282,130.71,130.7,9.78882769]
[1763416082592,14.0596282,130.71,130.67,9.78882769]
[1763416082928,0.63,130.74,130.67,9.78882769]
[1763416082929,14.0596282,130.68,130.67,9.78882769]
[1763416083300,14.6896282,130.68,130.67,9.78882769]
[1763416083923,43.34875683,130.59,130.58,14.0596282]
[1763416084099,0.72,130.67,130.55,63.0]
[1763416084100,61.46971683,130.56,130.55,63.0]
[1763416084800,61.46971683,130.56,130.55,62.73319333]
[1763416085208,61.46971683,130.56,130.55,76.79282153]
[1763416085827,61.46971683,130.56,130.55,77.49282153]
[1763416088028,38.99685746,130.7,130.55,77.49282153]
[1763416088029,14.0596282,130.62,130.55,110.3127329]
[1763416088214,14.0596282,130.62,130.56,13.7926282]
[1763416088421,0.72,130.63,130.56,14.0596282]
[1763416088611,14.0596282,130.62,130.56,14.0596282]
[1763416088928,14.0596282,130.61,130.54,14.1596282]
[1763416089230,14.0596282,130.6,130.54,14.1596282]
[1763416089419,14.0596282,130.6,130.54,0.1]
[1763416089609,14.0596282,130.59,130.54,0.1]
[1763416090020,27.90978769,130.55,130.54,0.8]
[1763416090319,27.90978769,130.55,130.54,14.8596282]
[1763416090523,27.90978769,130.55,130.53,14.0596282]
[1763416090697,27.90978769,130.55,130.52,14.0596282]
[1763416092135,27.90978769,130.55,130.53,14.0596282]
[1763416093226,27.90978769,130.55,130.52,14.0596282]
[1763416093711,27.90978769,130.55,130.52,57.4892564]
[1763416095705,27.90978769,130.55,130.54,14.0596282]
[1763416096252,104.7,130.69,130.54,14.0596282]
[1763416096253,0.67,130.64,130.54,57.6592564]
[1763416096545,4.00356309,130.64,130.63,14.0596282]
[1763416096905,0.67,130.67,130.63,14.0596282]
[1763416097112,4.6732093,130.67,130.63,14.0596282]
[1763416097417,18.12096,130.66,130.64,14.0596282]
[1763416097618,9.78882769,130.65,130.63,14.0596282]
[1763416098638,9.78882769,130.66,130.64,14.0596282]
[1763416098938,9.78882769,130.66,130.64,8.97689417]
[1763416100231,9.98882769,130.7,130.65,9.14689417]
[1763416100439,9.98882769,130.7,130.69,8.97689417]
[1763416100440,0.2,130.7,130.69,8.97689417]
[1763416101615,28.10978769,130.7,130.69,8.97689417]
[1763416102020,18.12096,130.66,130.57,23.08]
[1763416102228,18.12096,130.62,130.58,0.76581406]
[1763416102934,18.12096,130.66,130.58,0.76581406]
[1763416103229,0.2,130.7,130.58,0.76581406]
[1763416103230,18.12096,130.62,130.58,0.76581406]
[1763416103430,18.12096,130.62,130.61,8.97689417]
[1763416103619,18.12096,130.62,130.61,9.74253232]
[1763416103816,18.12096,130.62,130.61,8.97689417]
[1763416107624,27.90978769,130.62,130.57,0.76587271]
[1763416107818,18.12096,130.58,130.57,123.54239508]
[1763416108018,18.12096,130.58,130.57,122.77652237]
[1763416108514,18.12096,130.61,130.57,122.77652237]
[1763416108914,18.12096,130.59,130.58,8.97689417]
[1763416109327,9.78882769,130.58,130.57,8.97689417]
[1763416109531,18.12096,130.55,130.53,123.54262977]
[1763416109916,18.12096,130.54,130.53,8.97689417]
[1763416114138,9.78882769,130.56,130.5,19.54280589]
[1763416114139,18.12096,130.53,130.5,19.54280589]
[1763416115032,18.12096,130.53,130.5,123.54280589]
[1763416115338,18.12096,130.53,130.52,8.97689417]
[1763416116720,18.12096,130.53,130.51,8.97689417]
[1763416116943,18.12096,130.53,130.52,8.97689417]
[1763416118026,18.12096,130.53,130.5,123.54280589]
[1763416118219,18.12096,130.53,130.51,8.97689417]
[1763416118424,18.12096,130.53,130.5,19.54280589]
[1763416118621,18.12096,130.53,130.5,28.51970006]